[Event "Early-Titled-Tuesday-Blitz-March-05-2024"]
[Site "Chess.com"]
[Date "2024.03.05"]
[Round "3"]
[White "UnTucopalaTimba"]
[Black "Doublekk14"]
[Result "0-1"]
[WhiteElo "1992"]
[BlackElo "2345"]
[TimeControl "180+1"]
[EndTime "8:30:43 PST"]
[Termination "Doublekk14 won by resignation"]

1. e4 {[%clk 0:02:59.8]} 1... c5 {[%clk 0:02:57.2]} 2. Nf3 {[%clk 0:02:58.9]}
2... e6 {[%clk 0:02:56.8]} 3. c3 {[%clk 0:02:58.7]} 3... d5 {[%clk 0:02:54.4]}
4. exd5 {[%clk 0:02:58.7]} 4... exd5 {[%clk 0:02:54.6]} 5. d4 {[%clk 0:02:58.7]}
5... Nf6 {[%clk 0:02:55]} 6. Bb5+ {[%clk 0:02:56.8]} 6... Nc6 {[%clk 0:02:53.6]}
7. O-O {[%clk 0:02:56.4]} 7... Be7 {[%clk 0:02:54]} 8. Re1 {[%clk 0:02:56.1]}
8... O-O {[%clk 0:02:53.7]} 9. Bf4 {[%clk 0:02:50.5]} 9... a6 {[%clk 0:02:37.5]}
10. Bd3 {[%clk 0:02:44]} 10... cxd4 {[%clk 0:02:29.8]} 11. cxd4 {[%clk
0:02:42.1]} 11... Bg4 {[%clk 0:02:28.5]} 12. Be2 {[%clk 0:02:36.7]} 12... Qb6
{[%clk 0:02:12.2]} 13. Bc1 {[%clk 0:02:19.9]} 13... Bb4 {[%clk 0:02:06.8]} 14.
Nc3 {[%clk 0:02:18.2]} 14... Rad8 {[%clk 0:01:52.5]} 15. Be3 {[%clk 0:02:12.9]}
15... Rfe8 {[%clk 0:01:50]} 16. h3 {[%clk 0:02:10.8]} 16... Bh5 {[%clk
0:01:47.4]} 17. a3 {[%clk 0:02:02.6]} 17... Bxc3 {[%clk 0:01:45]} 18. bxc3
{[%clk 0:02:02.4]} 18... Ne4 {[%clk 0:01:45.4]} 19. c4 {[%clk 0:01:57.7]} 19...
Nc3 {[%clk 0:01:41.7]} 20. Qc2 {[%clk 0:01:50.5]} 20... Nxe2+ {[%clk 0:01:38.2]}
21. Qxe2 {[%clk 0:01:49.6]} 21... dxc4 {[%clk 0:01:30.5]} 22. d5 {[%clk
0:01:44.4]} 22... Bxf3 {[%clk 0:01:01.6]} 23. Bxb6 {[%clk 0:01:28.8]} 23... Bxe2
{[%clk 0:00:56.9]} 24. dxc6 {[%clk 0:01:26.5]} 24... Rd6 {[%clk 0:00:55.1]} 25.
c7 {[%clk 0:01:12.2]} 25... Rxb6 {[%clk 0:00:54.6]} 26. Rxe2 {[%clk 0:01:11.6]}
26... Rc8 {[%clk 0:00:49.4]} 27. Rae1 {[%clk 0:01:08.9]} 27... Re6 {[%clk
0:00:47.7]} 28. Rxe6 {[%clk 0:01:02.3]} 28... fxe6 {[%clk 0:00:47.5]} 29. Rxe6
{[%clk 0:01:02.4]} 29... Rxc7 {[%clk 0:00:47.6]} 30. Re2 {[%clk 0:01:02.1]}
30... b5 {[%clk 0:00:46.2]} 31. Rc2 {[%clk 0:01:01.8]} 31... a5 {[%clk
0:00:46.3]} 32. Kf1 {[%clk 0:01:02]} 32... b4 {[%clk 0:00:46.5]} 33. axb4 {[%clk
0:00:59.1]} 33... axb4 {[%clk 0:00:46.7]} 34. Ke2 {[%clk 0:00:59.3]} 34... b3
{[%clk 0:00:45.6]} 35. Rb2 {[%clk 0:00:32]} 35... c3 {[%clk 0:00:37.3]} 36. Rxb3
{[%clk 0:00:30.1]} 36... c2 {[%clk 0:00:37.1]} 37. Rb8+ {[%clk 0:00:27.8]} 37...
Kf7 {[%clk 0:00:36.6]} 0-1

[Event "Early-Titled-Tuesday-Blitz-March-05-2024"]
[Site "Chess.com"]
[Date "2024.03.05"]
[Round "3"]
[White "Mikasinski"]
[Black "Kotofeyca"]
[Result "1-0"]
[WhiteElo "2623"]
[BlackElo "2452"]
[TimeControl "180+1"]
[EndTime "8:30:46 PST"]
[Termination "Mikasinski won on time"]

1. e4 {[%clk 0:03:00.9]} 1... c5 {[%clk 0:02:59.7]} 2. Nf3 {[%clk 0:03:00.6]}
2... d6 {[%clk 0:03:00.2]} 3. d4 {[%clk 0:03:00.6]} 3... cxd4 {[%clk 0:03:01.1]}
4. Nxd4 {[%clk 0:03:01.2]} 4... Nf6 {[%clk 0:03:01.8]} 5. Nc3 {[%clk 0:03:01.6]}
5... a6 {[%clk 0:03:02.5]} 6. Be2 {[%clk 0:03:01.8]} 6... e5 {[%clk 0:03:02.9]}
7. Nf3 {[%clk 0:03:02.2]} 7... h6 {[%clk 0:02:59.4]} 8. Nd2 {[%clk 0:02:59.6]}
8... b5 {[%clk 0:02:32.7]} 9. a4 {[%clk 0:02:59.1]} 9... b4 {[%clk 0:02:32.5]}
10. Nd5 {[%clk 0:02:59.8]} 10... Nxd5 {[%clk 0:02:29.2]} 11. exd5 {[%clk
0:02:59.1]} 11... g6 {[%clk 0:02:11.1]} 12. a5 {[%clk 0:02:55.9]} 12... Bg7
{[%clk 0:01:58.2]} 13. Nc4 {[%clk 0:02:51.4]} 13... O-O {[%clk 0:01:52.4]} 14.
Ra4 {[%clk 0:02:43.6]} 14... b3 {[%clk 0:01:28.2]} 15. cxb3 {[%clk 0:02:39.2]}
15... Nd7 {[%clk 0:01:28.2]} 16. b4 {[%clk 0:02:33.2]} 16... Qe7 {[%clk
0:01:02.2]} 17. Be3 {[%clk 0:02:18.7]} 17... f5 {[%clk 0:00:57.1]} 18. Nb6
{[%clk 0:02:18.6]} 18... Nxb6 {[%clk 0:00:53.8]} 19. Bxb6 {[%clk 0:02:18]} 19...
e4 {[%clk 0:00:37]} 20. Ra2 {[%clk 0:01:59.5]} 20... f4 {[%clk 0:00:35.5]} 21.
Bg4 {[%clk 0:01:41]} 21... f3 {[%clk 0:00:30.6]} 22. Bxc8 {[%clk 0:01:37]} 22...
fxg2 {[%clk 0:00:28.8]} 23. Rg1 {[%clk 0:01:35.3]} 23... Raxc8 {[%clk
0:00:25.9]} 24. Rxg2 {[%clk 0:01:30.8]} 24... g5 {[%clk 0:00:18.9]} 25. Be3
{[%clk 0:01:17.8]} 25... Rc4 {[%clk 0:00:16.7]} 26. Qe2 {[%clk 0:01:09.1]} 26...
Rxb4 {[%clk 0:00:15.1]} 27. Qxa6 {[%clk 0:01:09.4]} 27... Bxb2 {[%clk
0:00:12.8]} 28. Qc6 {[%clk 0:01:04.1]} 28... Qf7 {[%clk 0:00:08.6]} 29. Qxd6
{[%clk 0:00:57.2]} 29... Qf3 {[%clk 0:00:06.9]} 30. Qxb4 {[%clk 0:00:53.7]}
30... Qxg2 {[%clk 0:00:03.5]} 31. Rxb2 {[%clk 0:00:54.1]} 31... Qg1+ {[%clk
0:00:02.7]} 32. Kd2 {[%clk 0:00:54.7]} 32... Rc8 {[%clk 0:00:02.6]} 33. Rc2
{[%clk 0:00:50.4]} 33... Rd8 {[%clk 0:00:02.8]} 34. Qxe4 {[%clk 0:00:50]} 34...
Qa1 {[%clk 0:00:01.4]} 35. Qe6+ {[%clk 0:00:49.7]} 35... Kf8 {[%clk 0:00:01.2]}
36. Bc5+ {[%clk 0:00:49.6]} 36... Kg7 {[%clk 0:00:01.4]} 37. Qe7+ {[%clk
0:00:50.2]} 37... Kg6 {[%clk 0:00:01.8]} 38. Qxd8 {[%clk 0:00:50.6]} 1-0

[Event "Early-Titled-Tuesday-Blitz-March-05-2024"]
[Site "Chess.com"]
[Date "2024.03.05"]
[Round "3"]
[White "Fernando_Offermann"]
[Black "Crazy_girl99"]
[Result "0-1"]
[WhiteElo "2447"]
[BlackElo "2534"]
[TimeControl "180+1"]
[EndTime "8:30:46 PST"]
[Termination "Crazy_girl99 won by resignation"]

1. Nf3 {[%clk 0:02:59.3]} 1... d5 {[%clk 0:02:58.9]} 2. g3 {[%clk 0:02:59.4]}
2... Nf6 {[%clk 0:02:59.1]} 3. Bg2 {[%clk 0:02:59.7]} 3... g6 {[%clk 0:02:59.5]}
4. O-O {[%clk 0:02:59.7]} 4... Bg7 {[%clk 0:03:00.2]} 5. d3 {[%clk 0:03:00.4]}
5... c5 {[%clk 0:03:00.3]} 6. Nbd2 {[%clk 0:03:01]} 6... Nc6 {[%clk 0:03:00.2]}
7. e4 {[%clk 0:03:01.6]} 7... e6 {[%clk 0:02:58.1]} 8. Re1 {[%clk 0:03:01.3]}
8... O-O {[%clk 0:02:57.7]} 9. c3 {[%clk 0:03:01.7]} 9... b5 {[%clk 0:02:56.2]}
10. e5 {[%clk 0:03:00.3]} 10... Nd7 {[%clk 0:02:55.7]} 11. d4 {[%clk 0:03:00.8]}
11... b4 {[%clk 0:02:54.8]} 12. h4 {[%clk 0:03:00.8]} 12... Qb6 {[%clk
0:02:47.9]} 13. Nf1 {[%clk 0:02:59.5]} 13... f6 {[%clk 0:02:19.6]} 14. exf6
{[%clk 0:02:59.2]} 14... Nxf6 {[%clk 0:02:20]} 15. dxc5 {[%clk 0:02:57.5]} 15...
Qxc5 {[%clk 0:02:19.7]} 16. Be3 {[%clk 0:02:57.7]} 16... Qb5 {[%clk 0:02:18.3]}
17. cxb4 {[%clk 0:02:53.7]} 17... Qxb4 {[%clk 0:02:15.2]} 18. Re2 {[%clk
0:02:53.9]} 18... Ne4 {[%clk 0:02:11.9]} 19. a3 {[%clk 0:02:52.8]} 19... Qd6
{[%clk 0:02:03.5]} 20. Rc1 {[%clk 0:02:50.3]} 20... Bd7 {[%clk 0:01:54.4]} 21.
N1d2 {[%clk 0:02:48.9]} 21... Nxd2 {[%clk 0:01:39.7]} 22. Rxd2 {[%clk
0:02:42.6]} 22... Rf7 {[%clk 0:01:27.6]} 23. Bc5 {[%clk 0:02:42.1]} 23... Qc7
{[%clk 0:01:26.5]} 24. Ng5 {[%clk 0:02:42.4]} 24... Rf6 {[%clk 0:01:19.2]} 25.
Ne4 {[%clk 0:02:40.5]} 25... Rf5 {[%clk 0:01:11]} 26. Nd6 {[%clk 0:02:39.9]}
26... Re5 {[%clk 0:01:04.1]} 27. b4 {[%clk 0:02:38.9]} 27... a6 {[%clk
0:00:51.2]} 28. f4 {[%clk 0:02:38.9]} 28... Rh5 {[%clk 0:00:48.9]} 29. Bf3
{[%clk 0:02:35.3]} 29... Rf5 {[%clk 0:00:29.2]} 30. Nxf5 {[%clk 0:02:34.7]}
30... gxf5 {[%clk 0:00:30.1]} 31. Kg2 {[%clk 0:02:32.4]} 31... Kh8 {[%clk
0:00:21.3]} 32. Bf2 {[%clk 0:02:32.3]} 32... Qd8 {[%clk 0:00:20.4]} 33. Rdc2
{[%clk 0:02:31.6]} 33... Ne7 {[%clk 0:00:17.5]} 34. Qd3 {[%clk 0:02:28.4]} 34...
Bb5 {[%clk 0:00:17.1]} 35. Qd2 {[%clk 0:02:27.2]} 35... Qe8 {[%clk 0:00:17.2]}
36. Rc7 {[%clk 0:02:26.4]} 36... Ng6 {[%clk 0:00:17.1]} 37. Kh2 {[%clk
0:02:23.8]} 37... Rd8 {[%clk 0:00:17.3]} 38. Bh5 {[%clk 0:02:23.1]} 38... d4
{[%clk 0:00:13.3]} 39. Ra7 {[%clk 0:02:22.5]} 39... Rd7 {[%clk 0:00:10.1]} 40.
Rxd7 {[%clk 0:02:21.6]} 40... Qxd7 {[%clk 0:00:11]} 41. Bxg6 {[%clk 0:02:19.7]}
41... hxg6 {[%clk 0:00:11.1]} 42. Rc5 {[%clk 0:02:19.4]} 42... d3 {[%clk
0:00:11.2]} 43. h5 {[%clk 0:02:15.3]} 43... gxh5 {[%clk 0:00:11.1]} 44. Qd1
{[%clk 0:02:15.7]} 44... Qf7 {[%clk 0:00:11.1]} 45. Rc8+ {[%clk 0:02:13.6]}
45... Kh7 {[%clk 0:00:11.1]} 46. Rd8 {[%clk 0:02:14]} 46... Bf6 {[%clk
0:00:11.1]} 47. Rd6 {[%clk 0:02:10.8]} 47... e5 {[%clk 0:00:10.9]} 48. Bc5
{[%clk 0:02:10.8]} 48... e4 {[%clk 0:00:10.9]} 49. Qg1 {[%clk 0:02:03.5]} 49...
Be7 {[%clk 0:00:09.2]} 50. Qd4 {[%clk 0:01:58.9]} 50... Bxd6 {[%clk 0:00:08.9]}
51. Bxd6 {[%clk 0:01:59.3]} 51... Qe6 {[%clk 0:00:08.1]} 52. Be5 {[%clk
0:01:59.6]} 52... e3 {[%clk 0:00:07.9]} 53. Qxe3 {[%clk 0:01:59.5]} 53... Qd5
{[%clk 0:00:06.5]} 54. Qa7+ {[%clk 0:01:59.4]} 54... Qd7 {[%clk 0:00:05.1]} 55.
Qb8 {[%clk 0:01:51.6]} 55... d2 {[%clk 0:00:03.1]} 56. Qh8+ {[%clk 0:01:51.4]}
56... Kg6 {[%clk 0:00:03.7]} 57. Qg8+ {[%clk 0:01:51.3]} 57... Kh6 {[%clk
0:00:03.1]} 58. Qg5+ {[%clk 0:01:51.1]} 58... Kh7 {[%clk 0:00:03.6]} 59. Qxh5+
{[%clk 0:01:51.7]} 59... Kg8 {[%clk 0:00:04.1]} 60. Qh8+ {[%clk 0:01:51.7]}
60... Kf7 {[%clk 0:00:04.7]} 61. Qh5+ {[%clk 0:01:50.2]} 61... Ke6 {[%clk
0:00:05.1]} 62. Qd1 {[%clk 0:01:49.4]} 62... Qd3 {[%clk 0:00:04.9]} 63. Bb8
{[%clk 0:01:43.2]} 63... Qe2+ {[%clk 0:00:05.2]} 64. Qxe2+ {[%clk 0:01:43.4]}
64... Bxe2 {[%clk 0:00:06.1]} 0-1

[Event "Early-Titled-Tuesday-Blitz-March-05-2024"]
[Site "Chess.com"]
[Date "2024.03.05"]
[Round "3"]
[White "ural58"]
[Black "BardArtem"]
[Result "1/2-1/2"]
[WhiteElo "2505"]
[BlackElo "2708"]
[TimeControl "180+1"]
[EndTime "8:30:47 PST"]
[Termination "Game drawn by repetition"]

1. e4 {[%clk 0:02:54]} 1... d5 {[%clk 0:02:57.5]} 2. exd5 {[%clk 0:02:53.7]}
2... Qxd5 {[%clk 0:02:58.4]} 3. Nc3 {[%clk 0:02:53.3]} 3... Qe5+ {[%clk
0:02:58.7]} 4. Be2 {[%clk 0:02:52]} 4... Bg4 {[%clk 0:02:58.9]} 5. d4 {[%clk
0:02:51.6]} 5... Bxe2 {[%clk 0:02:59.2]} 6. Ngxe2 {[%clk 0:02:50.9]} 6... Qa5
{[%clk 0:02:58.9]} 7. O-O {[%clk 0:02:50.6]} 7... Nf6 {[%clk 0:02:58.9]} 8. b4
{[%clk 0:02:50.1]} 8... Qxb4 {[%clk 0:02:58.2]} 9. Rb1 {[%clk 0:02:49.7]} 9...
Qc4 {[%clk 0:02:58.6]} 10. Rxb7 {[%clk 0:02:49]} 10... e6 {[%clk 0:02:59]} 11.
Bf4 {[%clk 0:02:45.7]} 11... Na6 {[%clk 0:02:58.6]} 12. Nb5 {[%clk 0:02:36.5]}
12... Nd5 {[%clk 0:02:57.7]} 13. Nxa7 {[%clk 0:02:21.9]} 13... Nxf4 {[%clk
0:02:52.4]} 14. Nxf4 {[%clk 0:02:22]} 14... Bd6 {[%clk 0:02:52.6]} 15. Qd3
{[%clk 0:02:14.1]} 15... Qa4 {[%clk 0:02:33.1]} 16. Nh5 {[%clk 0:02:10.8]} 16...
O-O {[%clk 0:02:13.8]} 17. c4 {[%clk 0:01:59.5]} 17... Nb4 {[%clk 0:02:09.2]}
18. Qb3 {[%clk 0:01:12.9]} 18... Rxa7 {[%clk 0:02:04.2]} 19. Rxa7 {[%clk
0:01:12.4]} 19... Qxa7 {[%clk 0:02:02.4]} 20. c5 {[%clk 0:01:12.6]} 20... Nc6
{[%clk 0:01:43.6]} 21. cxd6 {[%clk 0:01:10.5]} 21... Nxd4 {[%clk 0:01:42.2]} 22.
Qb4 {[%clk 0:00:35.1]} 22... cxd6 {[%clk 0:01:35.4]} 23. Qxd6 {[%clk 0:00:23.8]}
23... Ne2+ {[%clk 0:01:33.9]} 24. Kh1 {[%clk 0:00:23.5]} 24... Qxa2 {[%clk
0:01:34.8]} 25. Qe5 {[%clk 0:00:22.2]} 25... f6 {[%clk 0:01:10.2]} 26. Qc7
{[%clk 0:00:22]} 26... Rf7 {[%clk 0:01:00.1]} 27. Qd8+ {[%clk 0:00:19.3]} 27...
Rf8 {[%clk 0:01:00.5]} 28. Qd7 {[%clk 0:00:19.1]} 28... Rf7 {[%clk 0:00:54]} 29.
Qe8+ {[%clk 0:00:18.9]} 29... Rf8 {[%clk 0:00:53.8]} 30. Qe7 {[%clk 0:00:17.6]}
30... Rf7 {[%clk 0:00:49.5]} 31. Qd8+ {[%clk 0:00:17.5]} 31... Rf8 {[%clk
0:00:48.6]} 32. Qd7 {[%clk 0:00:17.8]} 32... Rf7 {[%clk 0:00:47.1]} 33. Qc8+
{[%clk 0:00:17.8]} 33... Rf8 {[%clk 0:00:45.3]} 34. Qb7 {[%clk 0:00:17.9]} 34...
Rf7 {[%clk 0:00:38.9]} 35. Qb8+ {[%clk 0:00:18]} 35... Rf8 {[%clk 0:00:38.3]}
36. Qc7 {[%clk 0:00:17.9]} 36... Rf7 {[%clk 0:00:37.6]} 37. Qd8+ {[%clk
0:00:16.9]} 1/2-1/2

[Event "Early-Titled-Tuesday-Blitz-March-05-2024"]
[Site "Chess.com"]
[Date "2024.03.05"]
[Round "3"]
[White "KoningKobe"]
[Black "Semetey"]
[Result "0-1"]
[WhiteElo "2430"]
[BlackElo "2599"]
[TimeControl "180+1"]
[EndTime "8:30:49 PST"]
[Termination "Semetey won by resignation"]

1. d4 {[%clk 0:03:00.9]} 1... d5 {[%clk 0:02:57.4]} 2. Nf3 {[%clk 0:03:01.4]}
2... Nf6 {[%clk 0:02:56.8]} 3. g3 {[%clk 0:03:02]} 3... Bf5 {[%clk 0:02:55]} 4.
Bg2 {[%clk 0:03:02.2]} 4... Nbd7 {[%clk 0:02:54.9]} 5. O-O {[%clk 0:03:02.3]}
5... e6 {[%clk 0:02:54.9]} 6. c4 {[%clk 0:03:02.5]} 6... c6 {[%clk 0:02:54.1]}
7. Nc3 {[%clk 0:03:02.3]} 7... Be7 {[%clk 0:02:53.6]} 8. b3 {[%clk 0:03:02.2]}
8... O-O {[%clk 0:02:53]} 9. Bb2 {[%clk 0:03:02.9]} 9... a6 {[%clk 0:02:50.6]}
10. a4 {[%clk 0:03:00.2]} 10... h6 {[%clk 0:02:50.1]} 11. Re1 {[%clk 0:02:58.6]}
11... Bh7 {[%clk 0:02:49.4]} 12. a5 {[%clk 0:02:53.3]} 12... Bb4 {[%clk
0:02:48.9]} 13. Ne5 {[%clk 0:02:24.2]} 13... Nxe5 {[%clk 0:02:39.5]} 14. dxe5
{[%clk 0:02:24.1]} 14... Ne4 {[%clk 0:02:33.4]} 15. Bxe4 {[%clk 0:02:16]} 15...
Bxe4 {[%clk 0:02:33.3]} 16. Ra4 {[%clk 0:01:47.2]} 16... Bxa5 {[%clk 0:02:31]}
17. b4 {[%clk 0:01:47.7]} 17... Bc7 {[%clk 0:02:28.4]} 18. Nxe4 {[%clk
0:01:47.8]} 18... dxe4 {[%clk 0:02:29.1]} 19. Qc2 {[%clk 0:01:48.7]} 19... e3
{[%clk 0:02:23.2]} 20. f4 {[%clk 0:01:48.1]} 20... b5 {[%clk 0:02:19.3]} 21. Ra3
{[%clk 0:01:42.5]} 21... a5 {[%clk 0:02:12.6]} 22. Rd1 {[%clk 0:01:39.2]} 22...
Qb8 {[%clk 0:02:10.2]} 23. cxb5 {[%clk 0:01:33.3]} 23... cxb5 {[%clk 0:02:01.9]}
24. bxa5 {[%clk 0:01:29.4]} 24... Bxa5 {[%clk 0:02:01.6]} 25. Bd4 {[%clk
0:01:28]} 25... Rc8 {[%clk 0:01:50.2]} 26. Qe4 {[%clk 0:01:25.3]} 26... Bd2
{[%clk 0:01:48.5]} 27. Rb3 {[%clk 0:01:08.5]} 27... Ra4 {[%clk 0:01:34.6]} 28.
Rd3 {[%clk 0:00:44.5]} 28... Rcc4 {[%clk 0:01:27.1]} 29. Kg2 {[%clk 0:00:33.3]}
29... g6 {[%clk 0:01:23.5]} 30. R1xd2 {[%clk 0:00:28.6]} 30... exd2 {[%clk
0:01:22.5]} 31. Rxd2 {[%clk 0:00:29.5]} 31... Qa8 {[%clk 0:01:15.8]} 32. Kf3
{[%clk 0:00:20.4]} 32... Qa5 {[%clk 0:01:04.2]} 33. Rd1 {[%clk 0:00:17.4]} 33...
Qb4 {[%clk 0:00:59.2]} 34. e3 {[%clk 0:00:17.5]} 34... Qb3 {[%clk 0:00:58.6]}
35. Rb1 {[%clk 0:00:15.6]} 35... Rxd4 {[%clk 0:00:53.5]} 36. Qxd4 {[%clk
0:00:12.9]} 36... Qxb1 {[%clk 0:00:52.3]} 37. Qd8+ {[%clk 0:00:13.4]} 37... Kh7
{[%clk 0:00:52.4]} 38. Qe7 {[%clk 0:00:11.2]} 38... Qe4+ {[%clk 0:00:51.4]} 39.
Kg4 {[%clk 0:00:09.3]} 39... Qf5+ {[%clk 0:00:51.5]} 40. Kf3 {[%clk 0:00:09.6]}
40... h5 {[%clk 0:00:50.9]} 0-1

[Event "Early-Titled-Tuesday-Blitz-March-05-2024"]
[Site "Chess.com"]
[Date "2024.03.05"]
[Round "3"]
[White "AldokhinIvan"]
[Black "XDPS"]
[Result "0-1"]
[WhiteElo "2669"]
[BlackElo "2908"]
[TimeControl "180+1"]
[EndTime "8:30:50 PST"]
[Termination "XDPS won by resignation"]

1. e4 {[%clk 0:03:00.9]} 1... d6 {[%clk 0:02:57.7]} 2. d4 {[%clk 0:03:00.6]}
2... g6 {[%clk 0:02:57.9]} 3. Nc3 {[%clk 0:03:01.2]} 3... Bg7 {[%clk 0:02:58.2]}
4. Bg5 {[%clk 0:03:01.8]} 4... a6 {[%clk 0:02:58.5]} 5. Qd2 {[%clk 0:02:59.8]}
5... b5 {[%clk 0:02:58.2]} 6. f4 {[%clk 0:02:41.5]} 6... Bb7 {[%clk 0:02:58.4]}
7. O-O-O {[%clk 0:02:40.4]} 7... Nd7 {[%clk 0:02:58.3]} 8. e5 {[%clk 0:02:35]}
8... b4 {[%clk 0:02:54.8]} 9. Nce2 {[%clk 0:02:19.1]} 9... a5 {[%clk 0:02:52.6]}
10. Nf3 {[%clk 0:02:13.2]} 10... Nh6 {[%clk 0:02:49.6]} 11. Ng3 {[%clk
0:02:09.8]} 11... Qb8 {[%clk 0:02:33.2]} 12. Bd3 {[%clk 0:01:48.9]} 12... e6
{[%clk 0:02:32.6]} 13. Rde1 {[%clk 0:01:32.1]} 13... d5 {[%clk 0:02:12.8]} 14.
f5 {[%clk 0:01:28.5]} 14... Nxf5 {[%clk 0:02:12.1]} 15. Bxf5 {[%clk 0:01:27.4]}
15... gxf5 {[%clk 0:02:12.1]} 16. Nxf5 {[%clk 0:01:22.5]} 16... exf5 {[%clk
0:02:11.6]} 17. e6 {[%clk 0:01:22.4]} 17... Nf6 {[%clk 0:01:59.7]} 18. Bxf6
{[%clk 0:00:43.8]} 18... Bxf6 {[%clk 0:01:59.5]} 19. Qh6 {[%clk 0:00:44.4]}
19... Qd8 {[%clk 0:01:58.2]} 20. Qh5 {[%clk 0:00:30.1]} 20... O-O {[%clk
0:01:57.5]} 21. h4 {[%clk 0:00:24.2]} 21... fxe6 {[%clk 0:01:53.8]} 22. Ng5
{[%clk 0:00:22.3]} 22... Qd7 {[%clk 0:01:47.5]} 23. Nxe6 {[%clk 0:00:19.7]}
23... Rf7 {[%clk 0:01:34.6]} 24. Nc5 {[%clk 0:00:19.7]} 24... Qc6 {[%clk
0:01:21.9]} 25. Re6 {[%clk 0:00:18.3]} 25... Qb5 {[%clk 0:01:18.7]} 26. Rhe1
{[%clk 0:00:11.9]} 26... Raf8 {[%clk 0:01:01]} 27. Rxf6 {[%clk 0:00:09]} 27...
Rxf6 {[%clk 0:01:01.2]} 28. Re7 {[%clk 0:00:09.4]} 28... Qf1+ {[%clk 0:00:56.2]}
29. Kd2 {[%clk 0:00:08.8]} 29... Qxg2+ {[%clk 0:00:54.7]} 30. Kc1 {[%clk
0:00:08]} 30... Qg1+ {[%clk 0:00:53.6]} 31. Kd2 {[%clk 0:00:07]} 31... Qxd4+
{[%clk 0:00:53.1]} 32. Nd3 {[%clk 0:00:07.5]} 32... R6f7 {[%clk 0:00:47.1]} 33.
Qg5+ {[%clk 0:00:07.4]} 33... Qg7 {[%clk 0:00:47.7]} 0-1

[Event "Early-Titled-Tuesday-Blitz-March-05-2024"]
[Site "Chess.com"]
[Date "2024.03.05"]
[Round "3"]
[White "Road2GM3000"]
[Black "JaloliddinIlkhomi"]
[Result "0-1"]
[WhiteElo "2503"]
[BlackElo "2745"]
[TimeControl "180+1"]
[EndTime "8:30:52 PST"]
[Termination "JaloliddinIlkhomi won by resignation"]

1. d4 {[%clk 0:03:00.9]} 1... e6 {[%clk 0:03:00.6]} 2. c4 {[%clk 0:02:57.7]}
2... Nf6 {[%clk 0:03:00.8]} 3. Nc3 {[%clk 0:02:57.9]} 3... Bb4 {[%clk
0:03:01.3]} 4. Nf3 {[%clk 0:02:58.2]} 4... O-O {[%clk 0:03:01.5]} 5. Bg5 {[%clk
0:02:58.6]} 5... b6 {[%clk 0:03:01.7]} 6. e3 {[%clk 0:02:58.7]} 6... Bb7 {[%clk
0:03:01.9]} 7. Bd3 {[%clk 0:02:59.5]} 7... d5 {[%clk 0:03:02.4]} 8. cxd5 {[%clk
0:02:59.1]} 8... exd5 {[%clk 0:03:02.3]} 9. O-O {[%clk 0:02:59.4]} 9... Nbd7
{[%clk 0:03:02.8]} 10. Qc2 {[%clk 0:02:59.5]} 10... h6 {[%clk 0:03:02.4]} 11.
Bh4 {[%clk 0:02:59.6]} 11... Re8 {[%clk 0:03:03.1]} 12. Rac1 {[%clk 0:02:51.4]}
12... c5 {[%clk 0:03:03]} 13. a3 {[%clk 0:02:44.4]} 13... Bxc3 {[%clk
0:03:03.1]} 14. bxc3 {[%clk 0:02:44.9]} 14... Qe7 {[%clk 0:03:03.2]} 15. a4
{[%clk 0:02:41.7]} 15... Rac8 {[%clk 0:03:03]} 16. Qb1 {[%clk 0:02:41.4]} 16...
Qe6 {[%clk 0:03:00]} 17. Bf5 {[%clk 0:02:41.2]} 17... Qd6 {[%clk 0:02:57.4]} 18.
Ne5 {[%clk 0:02:31.5]} 18... Nxe5 {[%clk 0:02:49.2]} 19. dxe5 {[%clk 0:02:28.8]}
19... Qxe5 {[%clk 0:02:47.6]} 20. Bxc8 {[%clk 0:02:16.4]} 20... Rxc8 {[%clk
0:02:46.9]} 21. a5 {[%clk 0:02:14.1]} 21... Qe6 {[%clk 0:02:44.6]} 22. axb6
{[%clk 0:02:10.6]} 22... axb6 {[%clk 0:02:44.3]} 23. Bxf6 {[%clk 0:02:06.5]}
23... Qxf6 {[%clk 0:02:44.2]} 24. Qb2 {[%clk 0:01:56.2]} 24... Rc6 {[%clk
0:02:37]} 25. Ra1 {[%clk 0:01:54.1]} 25... Qe7 {[%clk 0:02:28.8]} 26. Ra7 {[%clk
0:01:53]} 26... Rg6 {[%clk 0:02:29.2]} 27. g3 {[%clk 0:01:03.3]} 27... Rf6
{[%clk 0:02:24.9]} 28. Qd2 {[%clk 0:00:59.9]} 28... d4 {[%clk 0:01:53.3]} 29.
exd4 {[%clk 0:00:55.5]} 29... Qe4 {[%clk 0:01:52.1]} 30. Rxb7 {[%clk 0:00:51.1]}
30... Qxb7 {[%clk 0:01:51.3]} 31. dxc5 {[%clk 0:00:49.6]} 31... bxc5 {[%clk
0:01:51.9]} 32. Qd8+ {[%clk 0:00:48.8]} 32... Kh7 {[%clk 0:01:52.1]} 33. Qd3+
{[%clk 0:00:49.1]} 33... g6 {[%clk 0:01:51.7]} 34. Qe3 {[%clk 0:00:45.6]} 34...
Qd5 {[%clk 0:01:48]} 35. Ra1 {[%clk 0:00:40.2]} 35... Kg7 {[%clk 0:01:47.8]} 36.
Ra5 {[%clk 0:00:33.9]} 36... Rb6 {[%clk 0:01:39.6]} 37. Ra1 {[%clk 0:00:23.9]}
37... Re6 {[%clk 0:01:39]} 38. Qf4 {[%clk 0:00:21.5]} 38... Rf6 {[%clk
0:01:39.4]} 39. Qe3 {[%clk 0:00:20.9]} 39... Rf3 {[%clk 0:01:39.5]} 40. Qc1
{[%clk 0:00:18.9]} 40... c4 {[%clk 0:01:37.2]} 41. Qc2 {[%clk 0:00:16.6]} 41...
Rd3 {[%clk 0:01:36.5]} 42. Rc1 {[%clk 0:00:15.7]} 42... Qe4 {[%clk 0:01:30.9]}
43. Qa4 {[%clk 0:00:10]} 43... Rd2 {[%clk 0:01:28.7]} 44. Qa7 {[%clk 0:00:08.1]}
44... Qd3 {[%clk 0:01:22.5]} 45. Qc5 {[%clk 0:00:06.8]} 45... Qe4 {[%clk
0:01:19.6]} 46. Qb6 {[%clk 0:00:05.2]} 46... Rd5 {[%clk 0:01:19.2]} 47. Qe3
{[%clk 0:00:04]} 47... Qxe3 {[%clk 0:01:17.6]} 48. fxe3 {[%clk 0:00:04.9]} 48...
Rd2 {[%clk 0:01:18.1]} 49. Kf1 {[%clk 0:00:04.8]} 49... Rxh2 {[%clk 0:01:17.3]}
50. Re1 {[%clk 0:00:03.2]} 50... Rh1+ {[%clk 0:01:16.2]} 51. Kf2 {[%clk
0:00:03.2]} 51... Rxe1 {[%clk 0:01:17.1]} 52. Kxe1 {[%clk 0:00:04.1]} 52... Kf6
{[%clk 0:01:18]} 53. Kf2 {[%clk 0:00:04.5]} 53... Ke5 {[%clk 0:01:18.9]} 54. Kf3
{[%clk 0:00:05.4]} 54... f5 {[%clk 0:01:19]} 55. g4 {[%clk 0:00:05.4]} 55...
fxg4+ {[%clk 0:01:19.1]} 56. Kxg4 {[%clk 0:00:06.3]} 56... Ke4 {[%clk 0:01:20]}
0-1